[Event "November 21 Early 2023"]
[Site "https://www.chess.com"]
[Date "2023.11.21"]
[Round "7"]
[White "Timerkhanov, Alexander"]
[Black "Bharath Subramaniyam H"]
[Result "0-1"]
[Board "32"]
[TimeControl "180+1"]
[WhiteFideId "24177938"]
[BlackFideId "46634827"]
[WhiteElo "2278"]
[BlackElo "2435"]
[WhiteTeam "RUS"]
[BlackTeam "IND"]
[WhiteClock "0:00:02"]
[BlackClock "0:00:28"]

1. d4 {[%clk 0:03:00]}  Nf6 {[%clk 0:02:58]} 2. Bg5 {[%clk 0:03:01]}  Ne4 {[%clk 0:02:57]} 3. h4 {[%clk 0:03:01]}  c5 {[%clk 0:02:57]} 4. d5 {[%clk 0:03:00]}  Qb6 {[%clk 0:02:57]} 5. Nd2 {[%clk 0:03:01]}  Nxd2 {[%clk 0:02:56]} 6. Bxd2 {[%clk 0:02:59]}  Qxb2 {[%clk 0:02:53]} 7. Nf3 {[%clk 0:02:59]}  d6 {[%clk 0:02:51]} 8. e4 {[%clk 0:02:59]}  Qb6 {[%clk 0:02:51]} 9. Bc3 {[%clk 0:02:57]}  Nd7 {[%clk 0:02:51]} 10. Bc4 {[%clk 0:02:53]}  Qc7 {[%clk 0:02:48]} 11. Qe2 {[%clk 0:02:51]}  Nb6 {[%clk 0:02:48]} 12. e5 {[%clk 0:02:49]}  Nxc4 {[%clk 0:02:24]} 13. Qxc4 {[%clk 0:02:50]}  Bd7 {[%clk 0:02:19]} 14. exd6 {[%clk 0:02:29]}  exd6 {[%clk 0:01:58]} 15. Qe4+ {[%clk 0:02:25]}  Kd8 {[%clk 0:01:58]} 16. O-O {[%clk 0:02:19]}  f6 {[%clk 0:01:48]} 17. h5 {[%clk 0:02:18]}  h6 {[%clk 0:01:41]} 18. Nh4 {[%clk 0:02:17]}  b6 {[%clk 0:01:36]} 19. Rfe1 {[%clk 0:02:16]}  Kc8 {[%clk 0:01:34]} 20. a4 {[%clk 0:02:10]}  a6 {[%clk 0:01:31]} 21. Rab1 {[%clk 0:02:08]}  Rb8 {[%clk 0:01:29]} 22. Ng6 {[%clk 0:02:06]}  Rg8 {[%clk 0:01:29]} 23. Nxf8 {[%clk 0:02:02]}  Rxf8 {[%clk 0:01:28]} 24. Qe7 {[%clk 0:02:03]}  Kb7 {[%clk 0:01:23]} 25. Qxg7 {[%clk 0:02:02]}  Rg8 {[%clk 0:01:13]} 26. Qxh6 {[%clk 0:01:56]}  Bh3 {[%clk 0:01:13]} 27. g3 {[%clk 0:01:53]}  Qf7 {[%clk 0:01:13]} 28. Qxf6 {[%clk 0:01:50]}  Qxd5 {[%clk 0:01:13]} 29. Qe7+ {[%clk 0:01:42]}  Kc6 {[%clk 0:01:07]} 30. Qe4 {[%clk 0:01:40]}  Qxe4 {[%clk 0:01:07]} 31. Rxe4 {[%clk 0:01:41]}  Bf5 {[%clk 0:01:08]} 32. Re7 {[%clk 0:01:13]}  Bxc2 {[%clk 0:01:06]} 33. Rc1 {[%clk 0:01:13]}  Bd3 {[%clk 0:01:03]} 34. h6 {[%clk 0:01:13]}  Rb7 {[%clk 0:00:57]} 35. Rce1 {[%clk 0:01:09]}  Rgb8 {[%clk 0:00:49]} 36. g4 {[%clk 0:00:58]}  b5 {[%clk 0:00:47]} 37. axb5+ {[%clk 0:00:57]}  axb5 {[%clk 0:00:48]} 38. f4 {[%clk 0:00:58]}  b4 {[%clk 0:00:49]} 39. Bf6 {[%clk 0:00:57]}  Rxe7 {[%clk 0:00:41]} 40. Rxe7 {[%clk 0:00:55]}  c4 {[%clk 0:00:42]} 41. h7 {[%clk 0:00:54]}  Bxh7 {[%clk 0:00:40]} 42. Rxh7 {[%clk 0:00:55]}  c3 {[%clk 0:00:31]} 43. Rh3 {[%clk 0:00:51]}  c2 {[%clk 0:00:28]} 44. Bb2 {[%clk 0:00:51]}  Ra8 {[%clk 0:00:28]} 45. Rh1 {[%clk 0:00:31]}  Ra2 {[%clk 0:00:28]} 46. Bc1 {[%clk 0:00:29]}  b3 {[%clk 0:00:28]} 47. Rh2 {[%clk 0:00:02]}  Ra1 {[%clk 0:00:28]} 0-1

[Event "November 21 Early 2023"]
[Site "https://www.chess.com"]
[Date "2023.11.21"]
[Round "7"]
[White "Mikhailovsky, Vladimir"]
[Black "Shuvalova, Polina"]
[Result "0-1"]
[Board "36"]
[TimeControl "180+1"]
[WhiteFideId "34105414"]
[BlackFideId "24171760"]
[WhiteElo "2257"]
[BlackElo "2342"]
[WhiteTeam "RUS"]
[BlackTeam "RUS"]
[WhiteClock "0:00:00"]
[BlackClock "0:00:04"]

1. e4 {[%clk 0:03:00]}  c6 {[%clk 0:02:59]} 2. d4 {[%clk 0:02:59]}  d5 {[%clk 0:03:00]} 3. Nc3 {[%clk 0:03:00]}  dxe4 {[%clk 0:03:00]} 4. Nge2 {[%clk 0:03:00]}  Nf6 {[%clk 0:02:58]} 5. Ng3 {[%clk 0:03:00]}  Nbd7 {[%clk 0:02:52]} 6. Ncxe4 {[%clk 0:02:56]}  Nxe4 {[%clk 0:02:52]} 7. Nxe4 {[%clk 0:02:57]}  Nf6 {[%clk 0:02:52]} 8. Nxf6+ {[%clk 0:02:41]}  exf6 {[%clk 0:02:53]} 9. Bc4 {[%clk 0:02:40]}  Bd6 {[%clk 0:02:50]} 10. Qe2+ {[%clk 0:02:40]}  Qe7 {[%clk 0:02:49]} 11. Qxe7+ {[%clk 0:02:41]}  Kxe7 {[%clk 0:02:46]} 12. Be3 {[%clk 0:02:40]}  Be6 {[%clk 0:02:46]} 13. Bd3 {[%clk 0:02:38]}  Rhd8 {[%clk 0:02:40]} 14. c3 {[%clk 0:02:37]}  Rac8 {[%clk 0:02:38]} 15. O-O-O {[%clk 0:02:36]}  Bxa2 {[%clk 0:02:22]} 16. c4 {[%clk 0:02:31]}  b5 {[%clk 0:02:20]} 17. Bf5 {[%clk 0:02:07]}  Rb8 {[%clk 0:02:13]} 18. cxb5 {[%clk 0:01:33]}  cxb5 {[%clk 0:02:09]} 19. Kd2 {[%clk 0:01:21]}  Bd5 {[%clk 0:01:55]} 20. f3 {[%clk 0:01:19]}  a5 {[%clk 0:01:50]} 21. Be4 {[%clk 0:01:09]}  Bb4+ {[%clk 0:01:43]} 22. Ke2 {[%clk 0:01:09]}  Rbc8 {[%clk 0:01:38]} 23. Rc1 {[%clk 0:01:09]}  Bc4+ {[%clk 0:01:20]} 24. Bd3 {[%clk 0:00:59]}  Bxd3+ {[%clk 0:01:19]} 25. Kxd3 {[%clk 0:01:00]}  a4 {[%clk 0:01:14]} 26. g4 {[%clk 0:00:54]}  Ke6 {[%clk 0:01:10]} 27. Ke4 {[%clk 0:00:51]}  g6 {[%clk 0:01:10]} 28. d5+ {[%clk 0:00:48]}  Kd7 {[%clk 0:00:46]} 29. Bd4 {[%clk 0:00:46]}  Re8+ {[%clk 0:00:45]} 30. Kd3 {[%clk 0:00:46]}  f5 {[%clk 0:00:42]} 31. gxf5 {[%clk 0:00:46]}  gxf5 {[%clk 0:00:43]} 32. Rhg1 {[%clk 0:00:30]}  Rxc1 {[%clk 0:00:31]} 33. Rxc1 {[%clk 0:00:30]}  Bd6 {[%clk 0:00:31]} 34. Rc6 {[%clk 0:00:27]}  Bxh2 {[%clk 0:00:29]} 35. Rh6 {[%clk 0:00:20]}  Be5 {[%clk 0:00:10]} 36. Rxh7 {[%clk 0:00:21]}  Bxd4 {[%clk 0:00:10]} 37. Kxd4 {[%clk 0:00:15]}  Re2 {[%clk 0:00:10]} 38. Rxf7+ {[%clk 0:00:15]}  Ke8 {[%clk 0:00:10]} 39. Ra7 {[%clk 0:00:07]}  Rxb2 {[%clk 0:00:10]} 40. Ke5 {[%clk 0:00:07]}  Rb3 {[%clk 0:00:05]} 41. d6 {[%clk 0:00:04]}  Re3+ {[%clk 0:00:05]} 42. Kxf5 {[%clk 0:00:04]}  a3 {[%clk 0:00:04]} 43. Rb7 {[%clk 0:00:01]}  a2 {[%clk 0:00:04]} 44. Ra7 {[%clk 0:00:00]}  Re2 {[%clk 0:00:04]} 0-1

[Event "November 21 Early 2023"]
[Site "https://www.chess.com"]
[Date "2023.11.21"]
[Round "7"]
[White "Sadykov, Ramil"]
[Black "Gokerkan, Cem Kaan"]
[Result "0-1"]
[Board "37"]
[TimeControl "180+1"]
[WhiteFideId "24113590"]
[BlackFideId "6336760"]
[WhiteElo "2245"]
[BlackElo "2365"]
[WhiteTeam "FID"]
[BlackTeam "TUR"]
[WhiteClock "0:00:00"]
[BlackClock "0:00:09"]

1. e4 {[%clk 0:02:57]}  c5 {[%clk 0:02:59]} 2. Nf3 {[%clk 0:02:56]}  d6 {[%clk 0:03:00]} 3. Bb5+ {[%clk 0:02:50]}  Nd7 {[%clk 0:03:00]} 4. c4 {[%clk 0:02:48]}  Nf6 {[%clk 0:03:00]} 5. Nc3 {[%clk 0:02:48]}  g6 {[%clk 0:03:00]} 6. O-O {[%clk 0:02:46]}  Bg7 {[%clk 0:03:00]} 7. d4 {[%clk 0:02:26]}  cxd4 {[%clk 0:02:58]} 8. Qxd4 {[%clk 0:02:23]}  O-O {[%clk 0:02:58]} 9. Bxd7 {[%clk 0:02:23]}  Nxd7 {[%clk 0:02:54]} 10. Qe3 {[%clk 0:02:07]}  Nc5 {[%clk 0:02:41]} 11. Bd2 {[%clk 0:01:30]}  Bg4 {[%clk 0:02:34]} 12. Rac1 {[%clk 0:01:19]}  Rc8 {[%clk 0:02:33]} 13. h3 {[%clk 0:01:17]}  Bxf3 {[%clk 0:02:33]} 14. Qxf3 {[%clk 0:01:18]}  Ne6 {[%clk 0:02:28]} 15. b3 {[%clk 0:01:17]}  a6 {[%clk 0:02:22]} 16. Qd3 {[%clk 0:01:07]}  Re8 {[%clk 0:02:20]} 17. Be3 {[%clk 0:01:06]}  Qa5 {[%clk 0:02:19]} 18. Nd5 {[%clk 0:00:55]}  Qxa2 {[%clk 0:02:11]} 19. f4 {[%clk 0:00:45]}  Nc5 {[%clk 0:01:55]} 20. Bxc5 {[%clk 0:00:40]}  dxc5 {[%clk 0:01:56]} 21. e5 {[%clk 0:00:36]}  Qa5 {[%clk 0:01:46]} 22. f5 {[%clk 0:00:22]}  Bxe5 {[%clk 0:01:34]} 23. fxg6 {[%clk 0:00:21]}  hxg6 {[%clk 0:01:35]} 24. Qf3 {[%clk 0:00:19]}  f6 {[%clk 0:01:04]} 25. Qg4 {[%clk 0:00:13]}  Kg7 {[%clk 0:01:01]} 26. Rce1 {[%clk 0:00:07]}  Qd8 {[%clk 0:00:59]} 27. Rxe5 {[%clk 0:00:05]}  fxe5 {[%clk 0:00:59]} 28. Qe6 {[%clk 0:00:05]}  Rf8 {[%clk 0:00:56]} 29. Qxe5+ {[%clk 0:00:04]}  Kh7 {[%clk 0:00:57]} 30. Re1 {[%clk 0:00:02]}  Rf7 {[%clk 0:00:55]} 31. Re4 {[%clk 0:00:03]}  e6 {[%clk 0:00:49]} 32. Qxe6 {[%clk 0:00:03]}  Rf8 {[%clk 0:00:21]} 33. Ne7 {[%clk 0:00:03]}  Qd1+ {[%clk 0:00:16]} 34. Kh2 {[%clk 0:00:03]}  Rc6 {[%clk 0:00:09]} 35. Rh4+ {[%clk 0:00:02]}  Kg7 {[%clk 0:00:09]} 36. Nxc6 {[%clk 0:00:02]}  bxc6 {[%clk 0:00:09]} 37. Qe7+ {[%clk 0:00:02]}  Rf7 {[%clk 0:00:08]} 38. Qe5+ {[%clk 0:00:02]}  Rf6 {[%clk 0:00:08]} 39. Qe7+ {[%clk 0:00:02]}  Rf7 {[%clk 0:00:08]} 40. Qe5+ {[%clk 0:00:00]}  Rf6 {[%clk 0:00:09]} 0-1

[Event "November 21 Early 2023"]
[Site "https://www.chess.com"]
[Date "2023.11.21"]
[Round "7"]
[White "Sychev, Klementy"]
[Black "Diaz Perez, Michel Alejandro"]
[Result "1/2-1/2"]
[Board "38"]
[TimeControl "180+1"]
[WhiteFideId "4114060"]
[BlackFideId "3517179"]
[WhiteElo "2583"]
[BlackElo "2398"]
[WhiteTeam "FID"]
[BlackTeam "CUB"]
[WhiteClock "0:00:19"]
[BlackClock "0:00:22"]

1. e4 {[%clk 0:03:00]}  c5 {[%clk 0:02:59]} 2. Nf3 {[%clk 0:03:01]}  Nc6 {[%clk 0:02:58]} 3. d4 {[%clk 0:03:01]}  cxd4 {[%clk 0:02:59]} 4. Nxd4 {[%clk 0:03:02]}  Nf6 {[%clk 0:03:00]} 5. Nc3 {[%clk 0:03:02]}  e5 {[%clk 0:03:01]} 6. Ndb5 {[%clk 0:03:03]}  d6 {[%clk 0:03:01]} 7. Bg5 {[%clk 0:03:03]}  a6 {[%clk 0:03:01]} 8. Na3 {[%clk 0:03:04]}  b5 {[%clk 0:03:01]} 9. Bxf6 {[%clk 0:03:04]}  gxf6 {[%clk 0:03:00]} 10. Nd5 {[%clk 0:03:05]}  Bg7 {[%clk 0:03:00]} 11. g3 {[%clk 0:03:05]}  Ne7 {[%clk 0:02:57]} 12. Nxe7 {[%clk 0:02:58]}  Qxe7 {[%clk 0:02:58]} 13. Bg2 {[%clk 0:02:59]}  O-O {[%clk 0:02:59]} 14. c3 {[%clk 0:02:59]}  Rb8 {[%clk 0:02:56]} 15. Nc2 {[%clk 0:02:59]}  f5 {[%clk 0:02:57]} 16. exf5 {[%clk 0:02:51]}  Bxf5 {[%clk 0:02:56]} 17. Ne3 {[%clk 0:02:51]}  Be6 {[%clk 0:02:55]} 18. O-O {[%clk 0:02:49]}  b4 {[%clk 0:02:47]} 19. Qd3 {[%clk 0:02:43]}  bxc3 {[%clk 0:02:47]} 20. bxc3 {[%clk 0:02:44]}  Rfc8 {[%clk 0:02:46]} 21. Rad1 {[%clk 0:02:35]}  Rb6 {[%clk 0:02:37]} 22. Nf5 {[%clk 0:02:33]}  Bxf5 {[%clk 0:02:32]} 23. Qxf5 {[%clk 0:02:34]}  Rxc3 {[%clk 0:02:11]} 24. Be4 {[%clk 0:02:33]}  h6 {[%clk 0:02:09]} 25. Rc1 {[%clk 0:02:32]}  Qc7 {[%clk 0:02:07]} 26. Rb1 {[%clk 0:02:29]}  Rxb1 {[%clk 0:02:02]} 27. Rxb1 {[%clk 0:02:21]}  Rc1+ {[%clk 0:02:02]} 28. Rxc1 {[%clk 0:02:22]}  Qxc1+ {[%clk 0:02:03]} 29. Kg2 {[%clk 0:02:22]}  Qc7 {[%clk 0:02:02]} 30. Bd5 {[%clk 0:02:20]}  a5 {[%clk 0:01:59]} 31. a4 {[%clk 0:02:20]}  Kf8 {[%clk 0:01:53]} 32. h4 {[%clk 0:02:12]}  Kg8 {[%clk 0:01:50]} 33. g4 {[%clk 0:02:11]}  Qe7 {[%clk 0:01:44]} 34. g5 {[%clk 0:02:11]}  hxg5 {[%clk 0:01:45]} 35. hxg5 {[%clk 0:02:11]}  Kf8 {[%clk 0:01:19]} 36. Kf1 {[%clk 0:01:44]}  e4 {[%clk 0:01:02]} 37. g6 {[%clk 0:01:39]}  e3 {[%clk 0:00:55]} 38. Bc4 {[%clk 0:01:04]}  exf2 {[%clk 0:00:49]} 39. Kg2 {[%clk 0:00:38]}  Bh6 {[%clk 0:00:37]} 40. Bxf7 {[%clk 0:00:17]}  Qg5+ {[%clk 0:00:28]} 41. Qxg5 {[%clk 0:00:16]}  Bxg5 {[%clk 0:00:29]} 42. Kxf2 {[%clk 0:00:17]}  Kg7 {[%clk 0:00:29]} 43. Kf3 {[%clk 0:00:17]}  Bf6 {[%clk 0:00:29]} 44. Ke4 {[%clk 0:00:17]}  Be5 {[%clk 0:00:26]} 45. Kd5 {[%clk 0:00:17]}  Bg3 {[%clk 0:00:26]} 46. Kc6 {[%clk 0:00:17]}  Bf4 {[%clk 0:00:26]} 47. Kb6 {[%clk 0:00:17]}  Bd2 {[%clk 0:00:25]} 48. Kc6 {[%clk 0:00:17]}  Bb4 {[%clk 0:00:25]} 49. Kd5 {[%clk 0:00:18]}  Bc5 {[%clk 0:00:24]} 50. Ke6 {[%clk 0:00:18]}  Bb4 {[%clk 0:00:24]} 51. Kd5 {[%clk 0:00:18]}  Bc5 {[%clk 0:00:22]} 52. Ke6 {[%clk 0:00:18]}  Bb4 {[%clk 0:00:22]} 53. Kd5 {[%clk 0:00:19]} 1/2-1/2

[Event "November 21 Early 2023"]
[Site "https://www.chess.com"]
[Date "2023.11.21"]
[Round "7"]
[White "Trost, Edvin"]
[Black "Yeletsky, Ivan"]
[Result "1-0"]
[Board "40"]
[TimeControl "180+1"]
[WhiteFideId "1729519"]
[BlackFideId "24180327"]
[WhiteElo "2385"]
[BlackElo "2358"]
[WhiteTeam "SWE"]
[BlackTeam "RUS"]
[WhiteClock "0:00:26"]
[BlackClock "0:00:00"]

1. e4 {[%clk 0:02:58]}  Nf6 {[%clk 0:02:56]} 2. Nc3 {[%clk 0:02:56]}  d5 {[%clk 0:02:55]} 3. e5 {[%clk 0:02:52]}  d4 {[%clk 0:02:54]} 4. exf6 {[%clk 0:02:52]}  dxc3 {[%clk 0:02:55]} 5. fxe7 {[%clk 0:02:51]}  Qxe7+ {[%clk 0:02:54]} 6. Qe2 {[%clk 0:02:51]}  cxb2 {[%clk 0:02:51]} 7. Bxb2 {[%clk 0:02:50]}  Be6 {[%clk 0:02:50]} 8. g3 {[%clk 0:02:43]}  Bd5 {[%clk 0:02:39]} 9. f3 {[%clk 0:02:43]}  Nc6 {[%clk 0:02:35]} 10. Bh3 {[%clk 0:02:44]}  Qxe2+ {[%clk 0:02:33]} 11. Kxe2 {[%clk 0:02:40]}  f6 {[%clk 0:02:22]} 12. d4 {[%clk 0:02:24]}  Kf7 {[%clk 0:02:19]} 13. Kf2 {[%clk 0:02:19]}  Na5 {[%clk 0:02:12]} 14. Bc3 {[%clk 0:02:17]}  Nc4 {[%clk 0:02:11]} 15. Ne2 {[%clk 0:02:17]}  Bd6 {[%clk 0:02:11]} 16. Nf4 {[%clk 0:01:59]}  Bxf4 {[%clk 0:02:10]} 17. gxf4 {[%clk 0:02:00]}  Rhe8 {[%clk 0:02:07]} 18. Rhe1 {[%clk 0:02:00]}  Na3 {[%clk 0:02:03]} 19. Bf5 {[%clk 0:01:54]}  g6 {[%clk 0:01:58]} 20. Be4 {[%clk 0:01:51]}  Bxe4 {[%clk 0:01:53]} 21. Rxe4 {[%clk 0:01:45]}  a6 {[%clk 0:01:47]} 22. Bb2 {[%clk 0:01:33]}  Nc4 {[%clk 0:01:32]} 23. Bc3 {[%clk 0:01:34]}  Nd6 {[%clk 0:01:33]} 24. Rxe8 {[%clk 0:01:32]}  Rxe8 {[%clk 0:01:33]} 25. Bb4 {[%clk 0:01:32]}  Nc4 {[%clk 0:01:30]} 26. a4 {[%clk 0:01:28]}  a5 {[%clk 0:01:29]} 27. Bc3 {[%clk 0:01:28]}  Ke6 {[%clk 0:01:18]} 28. d5+ {[%clk 0:01:03]}  Kxd5 {[%clk 0:00:53]} 29. Bxf6 {[%clk 0:01:02]}  Kc6 {[%clk 0:00:45]} 30. Rd1 {[%clk 0:00:55]}  b5 {[%clk 0:00:40]} 31. axb5+ {[%clk 0:00:54]}  Kxb5 {[%clk 0:00:41]} 32. Rd7 {[%clk 0:00:54]}  Kc6 {[%clk 0:00:36]} 33. Rxh7 {[%clk 0:00:55]}  a4 {[%clk 0:00:34]} 34. Rg7 {[%clk 0:00:54]}  Re6 {[%clk 0:00:35]} 35. Rxg6 {[%clk 0:00:50]}  a3 {[%clk 0:00:35]} 36. f5 {[%clk 0:00:51]}  Rd6 {[%clk 0:00:24]} 37. Bc3 {[%clk 0:00:49]}  Kd5 {[%clk 0:00:22]} 38. h4 {[%clk 0:00:46]}  Rd7 {[%clk 0:00:17]} 39. h5 {[%clk 0:00:46]}  Nd6 {[%clk 0:00:16]} 40. f6 {[%clk 0:00:42]}  Rh7 {[%clk 0:00:16]} 41. h6 {[%clk 0:00:43]}  Ke6 {[%clk 0:00:14]} 42. Rg7 {[%clk 0:00:34]}  Rxh6 {[%clk 0:00:13]} 43. Rxc7 {[%clk 0:00:35]}  Nb5 {[%clk 0:00:12]} 44. Re7+ {[%clk 0:00:35]}  Kd6 {[%clk 0:00:08]} 45. Bb4+ {[%clk 0:00:35]}  Kd5 {[%clk 0:00:08]} 46. f7 {[%clk 0:00:35]}  Rf6 {[%clk 0:00:09]} 47. Rb7 {[%clk 0:00:33]}  a2 {[%clk 0:00:02]} 48. Rxb5+ {[%clk 0:00:27]}  Kc4 {[%clk 0:00:02]} 49. Ra5 {[%clk 0:00:28]}  Kxb4 {[%clk 0:00:02]} 50. Rxa2 {[%clk 0:00:28]}  Rxf7 {[%clk 0:00:02]} 51. Ra8 {[%clk 0:00:27]}  Kc3 {[%clk 0:00:03]} 52. Rc8+ {[%clk 0:00:27]}  Kd4 {[%clk 0:00:03]} 53. Re8 {[%clk 0:00:26]}  Kc3 {[%clk 0:00:03]} 54. Re2 {[%clk 0:00:27]}  Rf6 {[%clk 0:00:04]} 55. Kg3 {[%clk 0:00:23]}  Rg6+ {[%clk 0:00:04]} 56. Kf4 {[%clk 0:00:23]}  Rf6+ {[%clk 0:00:05]} 57. Kg4 {[%clk 0:00:24]}  Kd4 {[%clk 0:00:03]} 58. f4 {[%clk 0:00:24]}  Rf8 {[%clk 0:00:04]} 59. f5 {[%clk 0:00:25]}  Rg8+ {[%clk 0:00:03]} 60. Kf4 {[%clk 0:00:25]}  Rg1 {[%clk 0:00:04]} 61. f6 {[%clk 0:00:25]}  Rf1+ {[%clk 0:00:03]} 62. Kg5 {[%clk 0:00:25]}  Rg1+ {[%clk 0:00:00]} 63. Kh6 {[%clk 0:00:26]} 1-0

[Event "November 21 Early 2023"]
[Site "https://www.chess.com"]
[Date "2023.11.21"]
[Round "7"]
[White "Rakhmanov, Aleksandr"]
[Black "Koellner, Ruben Gideon"]
[Result "1-0"]
[Board "41"]
[TimeControl "180+1"]
[WhiteFideId "4173708"]
[BlackFideId "12993093"]
[WhiteElo "2521"]
[BlackElo "2347"]
[WhiteTeam "FID"]
[BlackTeam "GER"]
[WhiteClock "0:00:13"]
[BlackClock "0:00:07"]

1. d4 {[%clk 0:01:10]}  d6 {[%clk 0:02:56]} 2. Nf3 {[%clk 0:01:09]}  Nf6 {[%clk 0:02:56]} 3. g3 {[%clk 0:01:10]}  Nbd7 {[%clk 0:02:56]} 4. Bg2 {[%clk 0:01:10]}  e5 {[%clk 0:02:57]} 5. O-O {[%clk 0:01:10]}  Be7 {[%clk 0:02:57]} 6. Nc3 {[%clk 0:01:10]}  O-O {[%clk 0:02:57]} 7. e4 {[%clk 0:01:11]}  c6 {[%clk 0:02:57]} 8. h3 {[%clk 0:01:11]}  b5 {[%clk 0:02:57]} 9. a3 {[%clk 0:01:11]}  Bb7 {[%clk 0:02:57]} 10. Be3 {[%clk 0:01:09]}  a5 {[%clk 0:02:56]} 11. Nh4 {[%clk 0:00:58]}  Re8 {[%clk 0:02:56]} 12. dxe5 {[%clk 0:00:54]}  dxe5 {[%clk 0:02:43]} 13. Nf5 {[%clk 0:00:54]}  Bf8 {[%clk 0:02:43]} 14. Nd6 {[%clk 0:00:54]}  Bxd6 {[%clk 0:02:41]} 15. Qxd6 {[%clk 0:00:55]}  Qb8 {[%clk 0:02:36]} 16. Rfd1 {[%clk 0:00:40]}  Qxd6 {[%clk 0:02:35]} 17. Rxd6 {[%clk 0:00:41]}  b4 {[%clk 0:02:35]} 18. Na4 {[%clk 0:00:35]}  Kf8 {[%clk 0:02:31]} 19. Nc5 {[%clk 0:00:33]}  Nxc5 {[%clk 0:02:22]} 20. Bxc5 {[%clk 0:00:33]}  Kg8 {[%clk 0:02:22]} 21. axb4 {[%clk 0:00:34]}  axb4 {[%clk 0:02:22]} 22. Rxa8 {[%clk 0:00:35]}  Rxa8 {[%clk 0:02:22]} 23. Bxb4 {[%clk 0:00:35]}  h5 {[%clk 0:02:18]} 24. Ba3 {[%clk 0:00:35]}  c5 {[%clk 0:02:11]} 25. f3 {[%clk 0:00:35]}  c4 {[%clk 0:02:09]} 26. c3 {[%clk 0:00:35]}  Rc8 {[%clk 0:01:53]} 27. Bf1 {[%clk 0:00:33]}  h4 {[%clk 0:01:51]} 28. g4 {[%clk 0:00:32]}  Nh7 {[%clk 0:01:49]} 29. Rb6 {[%clk 0:00:29]}  Ba8 {[%clk 0:01:37]} 30. Rb4 {[%clk 0:00:28]}  Ng5 {[%clk 0:01:36]} 31. Kf2 {[%clk 0:00:23]}  Rd8 {[%clk 0:01:30]} 32. Rxc4 {[%clk 0:00:22]}  Kh7 {[%clk 0:01:10]} 33. Rc7 {[%clk 0:00:21]}  Rd2+ {[%clk 0:01:08]} 34. Ke3 {[%clk 0:00:21]}  Rd1 {[%clk 0:01:03]} 35. Ke2 {[%clk 0:00:19]}  Rc1 {[%clk 0:00:54]} 36. c4 {[%clk 0:00:19]}  Ne6 {[%clk 0:00:47]} 37. Rxf7 {[%clk 0:00:16]}  Rxc4 {[%clk 0:00:41]} 38. Kd2 {[%clk 0:00:14]}  Rd4+ {[%clk 0:00:39]} 39. Ke1 {[%clk 0:00:15]}  Bc6 {[%clk 0:00:33]} 40. Be7 {[%clk 0:00:14]}  Kg6 {[%clk 0:00:20]} 41. Rf5 {[%clk 0:00:14]}  Ba4 {[%clk 0:00:12]} 42. Rxe5 {[%clk 0:00:12]}  Rd1+ {[%clk 0:00:11]} 43. Kf2 {[%clk 0:00:13]}  Nf4 {[%clk 0:00:09]} 44. Bxh4 {[%clk 0:00:12]}  Bc2 {[%clk 0:00:05]} 45. Rg5+ {[%clk 0:00:12]}  Kh7 {[%clk 0:00:05]} 46. Ra5 {[%clk 0:00:10]}  Bd3 {[%clk 0:00:05]} 47. Bxd3 {[%clk 0:00:10]}  Rxd3 {[%clk 0:00:05]} 48. Bg3 {[%clk 0:00:09]}  Nxh3+ {[%clk 0:00:05]} 49. Kg2 {[%clk 0:00:09]}  Rd2+ {[%clk 0:00:04]} 50. Kxh3 {[%clk 0:00:09]}  Rxb2 {[%clk 0:00:05]} 51. Ra7 {[%clk 0:00:09]}  Rb3 {[%clk 0:00:06]} 52. Kg2 {[%clk 0:00:09]}  Rb2+ {[%clk 0:00:06]} 53. Bf2 {[%clk 0:00:09]}  Rb3 {[%clk 0:00:07]} 54. Bd4 {[%clk 0:00:09]}  Rb7 {[%clk 0:00:08]} 55. Rxb7 {[%clk 0:00:09]}  Kh6 {[%clk 0:00:08]} 56. Rb5 {[%clk 0:00:09]}  g5 {[%clk 0:00:07]} 57. f4 {[%clk 0:00:09]}  Kg6 {[%clk 0:00:03]} 58. Kf3 {[%clk 0:00:10]}  Kh7 {[%clk 0:00:04]} 59. Rxg5 {[%clk 0:00:10]}  Kh6 {[%clk 0:00:04]} 60. e5 {[%clk 0:00:10]}  Kh7 {[%clk 0:00:05]} 61. e6 {[%clk 0:00:11]}  Kh6 {[%clk 0:00:05]} 62. e7 {[%clk 0:00:12]}  Kh7 {[%clk 0:00:06]} 63. e8=Q {[%clk 0:00:13]}  Kh6 {[%clk 0:00:07]} 64. Qh8# {[%clk 0:00:13]} 1-0

[Event "November 21 Early 2023"]
[Site "https://www.chess.com"]
[Date "2023.11.21"]
[Round "7"]
[White "Arhan_Anand"]
[Black "Dragun, Kamil"]
[Result "0-1"]
[Board "42"]
[TimeControl "180+1"]
[BlackFideId "1134167"]
[WhiteElo "2655"]
[BlackElo "2551"]
[BlackTeam "POL"]
[WhiteClock "0:00:11"]
[BlackClock "0:00:23"]

1. d4 {[%clk 0:03:00]}  Nf6 {[%clk 0:02:47]} 2. c4 {[%clk 0:03:00]}  e6 {[%clk 0:02:47]} 3. Nf3 {[%clk 0:02:56]}  d5 {[%clk 0:02:47]} 4. Nc3 {[%clk 0:02:56]}  c6 {[%clk 0:02:47]} 5. e3 {[%clk 0:02:55]}  Nbd7 {[%clk 0:02:45]} 6. Be2 {[%clk 0:02:55]}  Bd6 {[%clk 0:02:41]} 7. O-O {[%clk 0:02:55]}  O-O {[%clk 0:02:41]} 8. b3 {[%clk 0:02:55]}  b6 {[%clk 0:02:40]} 9. Bb2 {[%clk 0:02:55]}  Bb7 {[%clk 0:02:40]} 10. Bd3 {[%clk 0:02:56]}  Rc8 {[%clk 0:02:36]} 11. Rc1 {[%clk 0:02:55]}  Re8 {[%clk 0:02:33]} 12. Re1 {[%clk 0:02:56]}  Qe7 {[%clk 0:02:26]} 13. Bb1 {[%clk 0:02:33]}  Nf8 {[%clk 0:02:13]} 14. e4 {[%clk 0:02:25]}  dxe4 {[%clk 0:02:11]} 15. Nxe4 {[%clk 0:02:25]}  Nxe4 {[%clk 0:02:11]} 16. Bxe4 {[%clk 0:02:25]}  Ng6 {[%clk 0:01:51]} 17. Qc2 {[%clk 0:02:21]}  Bb4 {[%clk 0:01:39]} 18. Re3 {[%clk 0:02:18]}  Qc7 {[%clk 0:01:24]} 19. Ne5 {[%clk 0:02:17]}  Bd6 {[%clk 0:01:14]} 20. Rh3 {[%clk 0:02:13]}  Bxe5 {[%clk 0:01:12]} 21. dxe5 {[%clk 0:02:14]}  c5 {[%clk 0:01:13]} 22. Bxb7 {[%clk 0:02:03]}  Qxb7 {[%clk 0:01:14]} 23. Rd1 {[%clk 0:01:50]}  Rcd8 {[%clk 0:01:14]} 24. Rxd8 {[%clk 0:01:47]}  Rxd8 {[%clk 0:01:13]} 25. Re3 {[%clk 0:01:27]}  Nf4 {[%clk 0:01:08]} 26. f3 {[%clk 0:01:25]}  Qd7 {[%clk 0:01:07]} 27. Bc3 {[%clk 0:01:19]}  Qd1+ {[%clk 0:00:51]} 28. Qxd1 {[%clk 0:01:19]}  Rxd1+ {[%clk 0:00:52]} 29. Kf2 {[%clk 0:01:19]}  Rc1 {[%clk 0:00:46]} 30. g3 {[%clk 0:01:10]}  Rc2+ {[%clk 0:00:46]} 31. Kf1 {[%clk 0:01:09]}  Nh3 {[%clk 0:00:41]} 32. Rd3 {[%clk 0:01:06]}  g5 {[%clk 0:00:42]} 33. Bd2 {[%clk 0:01:04]}  h5 {[%clk 0:00:38]} 34. a4 {[%clk 0:00:51]}  Kg7 {[%clk 0:00:39]} 35. a5 {[%clk 0:00:50]}  bxa5 {[%clk 0:00:38]} 36. Ke1 {[%clk 0:00:43]}  Kg6 {[%clk 0:00:37]} 37. Rd7 {[%clk 0:00:40]}  Ng1 {[%clk 0:00:32]} 38. Rd3 {[%clk 0:00:29]}  Rb2 {[%clk 0:00:28]} 39. Kd1 {[%clk 0:00:25]}  Ra2 {[%clk 0:00:24]} 40. Kc1 {[%clk 0:00:21]}  a4 {[%clk 0:00:24]} 41. bxa4 {[%clk 0:00:17]}  Rxa4 {[%clk 0:00:25]} 42. Kb2 {[%clk 0:00:17]}  Rxc4 {[%clk 0:00:24]} 43. Kb3 {[%clk 0:00:17]}  Rd4 {[%clk 0:00:23]} 44. Kc3 {[%clk 0:00:12]}  Rxd3+ {[%clk 0:00:23]} 45. Kxd3 {[%clk 0:00:13]}  Nxf3 {[%clk 0:00:23]} 46. Bc3 {[%clk 0:00:13]}  Nxh2 {[%clk 0:00:23]} 47. Kc4 {[%clk 0:00:13]}  Nf1 {[%clk 0:00:23]} 48. Kxc5 {[%clk 0:00:11]} 0-1